bitfinex/quotes_SOLUSD_20241105
["timestamp","ask_amount","ask_price","bid_price","bid_amount"]
[1730815190415,0.12549,163.96,163.94,13.41909272]
[1730815190919,0.25098,163.97,163.94,13.41909272]
[1730815192118,0.12549,163.97,163.94,13.41909272]
[1730815193616,0.12549,163.96,163.92,10.6759]
[1730815193914,0.25098,163.95,163.91,9.14939272]
[1730815194102,0.25098,163.95,163.9,9.14939272]
[1730815195110,0.12549,163.94,163.9,9.14939272]
[1730815195419,0.25098,163.93,163.89,10.6775]
[1730815195616,0.25098,163.93,163.89,19.82689272]
[1730815195814,0.25098,163.93,163.89,24.09799272]
[1730815197714,0.12549,163.9,163.86,10.6797]
[1730815197921,0.12549,163.9,163.87,9.14939272]
[1730815198122,0.12549,163.9,163.86,19.82909272]
[1730815198421,23.902374,163.9,163.86,10.6797]
[1730815198621,0.12549,163.88,163.85,9.14939272]
[1730815199333,23.776884,163.88,163.85,9.14939272]
[1730815199626,0.12549,163.87,163.85,9.14939272]
[1730815200197,0.25098,163.87,163.83,9.14939272]
[1730815200533,0.25098,163.83,163.79,10.6842]
[1730815200706,0.25098,163.82,163.79,19.83359272]
[1730815200909,0.12549,163.83,163.81,9.14939272]
[1730815201104,0.12549,163.83,163.82,9.14939272]
[1730815201834,0.12549,163.85,163.82,9.14939272]
[1730815202127,0.25098,163.85,163.82,9.14939272]
[1730815202310,0.25098,163.85,163.82,13.42219272]
[1730815204027,0.25098,163.85,163.83,9.14939272]
[1730815204194,15.1745,163.89,163.79,10.6842]
[1730815204195,10.3436,163.9,163.84,9.14939272]
[1730815204400,4.2709,163.9,163.85,9.14939272]
[1730815205398,4.2703,163.92,163.87,9.14939272]
[1730815205611,13.41969272,163.92,163.87,9.14939272]
[1730815206220,4.2703,163.92,163.87,9.14939272]
[1730815206823,0.12549,163.91,163.87,9.14939272]
[1730815207021,24.153354,163.91,163.87,9.14939272]
[1730815207933,0.37647,163.91,163.88,9.14939272]
[1730815208167,0.12549,163.91,163.9,9.14939272]
[1730815208628,9.14939272,163.96,163.9,9.14939272]
[1730815208802,0.12549,163.93,163.91,9.14939272]
[1730815209207,0.25098,163.93,163.9,9.14939272]
[1730815209431,0.12549,163.93,163.9,9.14939272]
[1730815210720,24.027864,163.92,163.87,10.6791]
[1730815210916,33.17725672,163.9,163.85,4.2721]
[1730815211122,0.12549,163.86,163.82,9.14939272]
[1730815211323,0.12549,163.85,163.81,19.83229272]
[1730815212014,0.25098,163.85,163.81,19.83229272]
[1730815212215,0.25098,163.85,163.83,9.14939272]
[1730815213940,20.6634,163.94,163.84,9.14939272]
[1730815214239,9.14939272,163.91,163.85,9.14939272]
[1730815214442,0.12549,163.9,163.85,9.14939272]
[1730815214650,9.27488272,163.9,163.85,9.14939272]
[1730815215219,24.027864,163.89,163.85,13.42149272]
[1730815218335,0.12549,163.86,163.8,158.8]
[1730815218655,0.12549,163.86,163.81,24.10559272]
[1730815219024,0.12549,163.86,163.83,9.14939272]
[1730815219541,0.12549,163.87,163.85,9.14939272]
[1730815219730,0.12549,163.87,163.86,9.14939272]
[1730815220440,23.776884,163.9,163.86,9.14939272]
[1730815220758,0.25098,163.89,163.85,9.14939272]
[1730815221651,0.25098,163.89,163.85,13.42139272]
[1730815221855,0.12549,163.88,163.85,13.42139272]
[1730815222029,0.12549,163.88,163.86,9.14939272]
[1730815223556,24.027864,163.93,163.87,13.42079272]
[1730815223862,0.12549,163.92,163.89,9.14939272]
[1730815225269,0.12549,163.92,163.88,9.14939272]
[1730815225573,24.027864,163.91,163.87,24.09989272]
[1730815225774,24.027864,163.91,163.88,9.14939272]
[1730815226085,0.12549,163.91,163.89,9.14939272]
[1730815226252,25.54299272,163.94,163.9,9.14939272]
[1730815226253,24.027864,163.93,163.9,9.14939272]
[1730815226659,4.2693,163.96,163.92,9.14939272]
[1730815226861,9.14939272,163.94,163.89,19.82719272]
[1730815227162,0.12549,163.93,163.89,19.82719272]
[1730815228051,0.12549,163.92,163.89,19.82719272]
[1730815230666,0.12549,163.91,163.88,9.14939272]
[1730815231792,0.12549,163.91,163.88,13.42069272]
[1730815231976,0.25098,163.91,163.88,9.14939272]
[1730815232289,0.12549,163.89,163.86,24.10069272]
[1730815232493,0.25098,163.89,163.86,10.6795]
[1730815232792,0.25098,163.89,163.84,167.94939272]
[1730815233006,0.12549,163.87,163.84,13.42179272]
[1730815234464,0.12549,163.86,163.77,174.3738]
[1730815234666,0.12549,163.85,163.81,9.14939272]
[1730815235089,24.027864,163.9,163.84,9.14939272]
[1730815235396,0.12549,163.89,163.86,9.14939272]
[1730815237266,0.12549,163.89,163.85,4.2721]
[1730815237267,24.153354,163.87,163.8,158.8]
[1730815237485,24.153354,163.87,163.83,9.14939272]
[1730815237691,0.37647,163.87,163.83,9.14939272]
[1730815238491,0.37647,163.87,163.83,13.42209272]
[1730815241179,0.37647,163.87,163.84,9.14939272]
[1730815241580,0.37647,163.87,163.83,24.10389272]
[1730815243699,0.37647,163.87,163.85,9.14939272]
[1730815243896,0.12549,163.87,163.85,9.14939272]
[1730815244087,0.12549,163.87,163.86,9.14939272]
[1730815245305,0.12549,163.9,163.86,13.42119272]
[1730815245493,0.25098,163.89,163.86,13.42119272]
[1730815245798,0.25098,163.88,163.84,4.2722]
[1730815245997,0.25098,163.88,163.84,13.42159272]
[1730815247704,0.25098,163.87,163.83,24.10389272]
[1730815247998,24.027864,163.86,163.83,10.6818]
[1730815248380,0.25098,163.85,163.83,10.6818]
[1730815251085,0.25098,163.85,163.84,9.14939272]
[1730815251086,0.12549,163.85,163.84,9.14939272]
[1730815252997,0.12549,163.85,163.83,14.9545]
[1730815253307,0.12549,163.85,163.84,9.14939272]
[1730815256017,0.12549,163.85,163.83,14.9545]
[1730815256210,0.12549,163.85,163.83,24.10389272]
[1730815256409,0.25098,163.85,163.83,19.83119272]
[1730815258525,0.25098,163.85,163.83,9.14939272]
[1730815260318,0.37647,163.85,163.84,9.14939272]
[1730815261319,0.25098,163.83,163.78,14.959]
[1730815261505,0.25098,163.83,163.81,9.14939272]
[1730815263116,4.69550934,163.82,163.81,9.14939272]
[1730815263431,24.153354,163.81,163.78,10.685]
[1730815263599,4.69550934,163.8,163.79,9.14939272]
[1730815264511,4.69550934,163.8,163.78,24.10819272]
[1730815264715,4.57001934,163.79,163.78,24.10819272]
[1730815265132,4.69550934,163.79,163.77,9.14939272]
[1730815265306,4.56912668,163.78,163.76,9.14939272]
[1730815265508,4.56912668,163.77,163.75,19.83619272]
[1730815265708,24.153354,163.79,163.75,19.83619272]
[1730815265907,4.56920699,163.78,163.75,19.83619272]
[1730815266217,4.56920699,163.77,163.76,9.14939272]
[1730815266412,4.56920699,163.77,163.76,13.42389272]
[1730815266917,24.153354,163.76,163.73,4.2753]
[1730815267119,24.153354,163.76,163.73,13.42469272]
[1730815267120,4.56920699,163.75,163.73,13.42469272]
[1730815267311,4.56920699,163.75,163.74,9.14939272]
[1730815267312,0.12549,163.75,163.74,9.14939272]
[1730815267510,4.69199082,163.75,163.74,9.14939272]
[1730815268018,4.56650082,163.75,163.74,9.14939272]
[1730815268428,4.56650082,163.75,163.74,13.42439272]
[1730815269119,24.153354,163.81,163.74,24.11199272]
[1730815269429,24.153354,163.79,163.77,9.14939272]
[1730815269633,4.68757782,163.78,163.77,9.14939272]
[1730815270847,4.56208782,163.78,163.77,13.42359272]
[1730815272022,4.56208782,163.78,163.77,24.10929272]
[1730815273230,0.12549,163.84,163.77,24.10929272]
[1730815273424,0.12549,163.81,163.8,9.14939272]
[1730815273656,4.68316109,163.81,163.8,9.14939272]
[1730815273927,4.68316109,163.81,163.78,9.14939272]
[1730815274127,4.55767109,163.8,163.78,9.14939272]
[1730815274428,4.55767109,163.79,163.78,9.14939272]
[1730815274737,0.12549,163.78,163.75,4.2748]
[1730815275035,4.55767109,163.77,163.75,13.42419272]
[1730815275238,4.55767109,163.76,163.75,13.42419272]
[1730815275538,4.55767109,163.76,163.74,10.6875]
[1730815275836,4.55767109,163.75,163.74,19.83689272]
[1730815276039,4.55767109,163.75,163.74,24.11189272]
[1730815276339,0.12549,163.76,163.74,24.11189272]
[1730815276510,0.12549,163.76,163.75,9.14939272]
[1730815276706,4.68078617,163.76,163.75,9.14939272]
[1730815277138,0.25098,163.75,163.72,0.3191821]
[1730815277342,33.30274672,163.73,163.72,0.3191821]
[1730815278243,37.85901028,163.73,163.72,0.3191821]
[1730815278413,28.70961756,163.73,163.72,0.3191821]
[1730815279139,24.153354,163.73,163.72,0.3191821]
[1730815279341,28.428654,163.73,163.72,0.3191821]
[1730815279709,28.70620027,163.73,163.72,0.3191821]
[1730815280029,24.153354,163.73,163.72,0.3191821]
[1730815281219,28.70600197,163.73,163.72,0.3191821]
[1730815282824,28.70302131,163.73,163.72,0.3191821]
[1730815284335,33.247991,163.73,163.72,0.3191821]
[1730815284836,28.69832369,163.73,163.72,0.3191821]
[1730815286647,32.97362369,163.73,163.72,0.3191821]
[1730815286845,42.12301641,163.73,163.72,0.3191821]
[1730815288216,32.97362369,163.73,163.72,0.3191821]
[1730815291424,28.69832369,163.73,163.72,0.3191821]
[1730815291825,4.79594969,163.73,163.72,0.3191821]
[1730815292230,0.25098,163.73,163.72,0.3191821]
[1730815292420,4.91348091,163.73,163.72,0.3191821]
[1730815292624,0.37647,163.73,163.72,0.3191821]
[1730815293843,0.12549,163.73,163.72,0.3191821]
[1730815294038,24.027864,163.76,163.72,4.5946821]
[1730815294249,4.53585748,163.75,163.74,9.14939272]
[1730815294554,9.14939272,163.79,163.74,9.14939272]
[1730815294727,4.66115355,163.78,163.74,9.14939272]
[1730815294927,0.12549,163.78,163.73,9.14939272]
[1730815295136,4.53528582,163.77,163.73,9.14939272]
[1730815295335,4.274,163.78,163.73,13.42439272]
[1730815295533,0.12549,163.77,163.73,13.42439272]
[1730815296328,0.12549,163.77,163.73,4.275]
[1730815296554,24.027864,163.77,163.73,4.275]
[1730815298843,0.12549,163.76,163.73,4.275]
[1730815299048,0.12549,163.75,163.73,4.275]
[1730815299247,0.12549,163.74,163.72,0.3191821]
[1730815299457,0.12549,163.73,163.72,0.3191821]
[1730815302062,0.37647,163.73,163.72,0.3191821]
[1730815302739,32.96652913,163.73,163.72,0.3191821]
[1730815303155,42.11592185,163.73,163.72,0.3191821]
[1730815303854,37.57804672,163.73,163.72,0.3191821]
[1730815304668,42.11609926,163.73,163.72,0.3191821]
[1730815309747,62.11609926,163.73,163.72,0.3191821]
[1730815311765,62.11795614,163.73,163.72,0.3191821]
[1730815314247,68.4946441,163.73,163.72,0.3191821]
[1730815314871,59.34525138,163.73,163.72,0.3191821]
[1730815315083,68.4946441,163.73,163.72,0.3191821]
[1730815315981,62.11795614,163.73,163.72,0.3191821]
[1730815317253,0.25098,163.71,163.64,15.7088821]
[1730815317454,24.153354,163.67,163.64,15.7088821]
[1730815318278,33.30274672,163.67,163.64,15.7088821]
[1730815318478,9.14939272,163.66,163.64,0.3191821]
[1730815318665,0.12549,163.65,163.64,0.3191821]
[1730815320581,0.25098,163.65,163.64,0.3191821]
[1730815320786,37.58014672,163.65,163.64,0.3191821]
[1730815323085,41.23326732,163.65,163.64,0.3191821]
[1730815324687,36.95586732,163.65,163.64,0.3191821]
[1730815324889,41.5085906,163.65,163.64,0.3191821]
[1730815326196,37.85547,163.65,163.64,0.3191821]
[1730815326381,41.50693137,163.65,163.64,0.3191821]
[1730815329673,41.50584793,163.65,163.64,0.3191821]
[1730815331874,32.35645521,163.65,163.64,0.3191821]
[1730815332075,41.50584793,163.65,163.64,0.3191821]
[1730815333277,37.58014672,163.65,163.64,0.3191821]
[1730815333485,45.77670718,163.65,163.64,0.3191821]
[1730815333694,65.77670718,163.65,163.64,0.3191821]
[1730815334993,65.87670718,163.65,163.64,0.3191821]
[1730815335205,56.62731446,163.65,163.64,0.3191821]
[1730815335808,52.09893446,163.65,163.64,0.3191821]
[1730815335975,8.19656046,163.65,163.64,4.5967821]
[1730815337280,8.19329725,163.65,163.64,4.5967821]
[1730815338186,8.19335691,163.65,163.64,4.5967821]
[1730815338797,8.19335691,163.65,163.64,13.74617482]
[1730815338995,9.14939272,163.71,163.64,24.44037482]
[1730815339290,8.19138829,163.7,163.65,9.14939272]
[1730815339485,8.19138829,163.69,163.65,9.14939272]
[1730815339685,8.19138829,163.68,163.65,9.14939272]
[1730815339898,0.12549,163.7,163.65,9.14939272]
[1730815340198,8.1917001,163.69,163.66,14.9699]
[1730815340399,3.64007276,163.68,163.66,14.9699]
[1730815340703,4.55208545,163.67,163.66,14.9699]
[1730815341306,8.19396842,163.67,163.66,14.9699]
[1730815341502,4.55208545,163.67,163.66,14.9699]
[1730815341709,8.19395912,163.67,163.66,24.11929272]
[1730815342584,6.5474557,163.72,163.66,24.11929272]
[1730815342585,6.5474557,163.72,163.66,45.50499272]
[1730815342797,6.5474557,163.72,163.69,9.14939272]
[1730815342975,6.5474557,163.72,163.7,9.14939272]
[1730815343178,6.5474557,163.72,163.69,9.14939272]
[1730815343889,3.64289731,163.71,163.7,4.2761]
[1730815344196,7.28579435,163.71,163.69,24.11629272]
[1730815345508,3.64289704,163.7,163.69,24.11629272]
[1730815345802,3.64289731,163.71,163.69,10.6906]
[1730815346182,3.64542264,163.7,163.67,10.4914]
[1730815346385,3.64289731,163.71,163.66,4.277]
[1730815346386,12.79481536,163.69,163.66,4.277]
[1730815346591,3.64542264,163.68,163.66,4.277]
[1730815347178,3.64542264,163.68,163.64,0.3191821]
[1730815347179,9.27488272,163.67,163.64,0.3191821]
[1730815347397,0.25098,163.67,163.64,4.5967821]
[1730815347594,3.64835995,163.66,163.64,4.5967821]
[1730815347795,3.64835995,163.65,163.64,4.5967821]
[1730815348298,3.64835995,163.66,163.64,0.3191821]
[1730815348595,3.64835995,163.65,163.64,0.3191821]
[1730815348803,0.12549,163.65,163.64,0.3191821]
[1730815348998,3.77384995,163.65,163.64,0.3191821]
[1730815350592,0.12549,163.65,163.64,0.3191821]
[1730815350787,3.77731628,163.65,163.64,0.3191821]
[1730815351509,0.12549,163.65,163.64,0.3191821]
[1730815354499,4.40209,163.68,163.64,4.5967821]
[1730815354500,0.12549,163.68,163.64,4.5967821]
[1730815354808,9.14939272,163.68,163.64,4.5967821]
[1730815355788,9.14939272,163.68,163.64,15.2909821]
[1730815355993,9.27488272,163.67,163.64,15.2909821]
[1730815356709,9.14939272,163.66,163.64,0.3191821]
[1730815359515,4.2767,163.68,163.64,0.3191821]
[1730815359516,9.27488272,163.65,163.64,0.3191821]
[1730815362198,0.12549,163.65,163.64,0.3191821]
[1730815367000,9.27488272,163.65,163.64,0.3191821]
[1730815367603,0.12549,163.65,163.64,0.3191821]
[1730815374617,20.0,163.7,163.64,0.3191821]
[1730815374803,24.027864,163.67,163.64,4.5967821]
[1730815375429,10.65348447,163.71,163.64,24.44037482]
[1730815375623,9.14939272,163.69,163.64,20.16277482]
[1730815375825,9.14939272,163.69,163.65,4.2773]
[1730815376731,0.12549,163.68,163.65,4.2773]
[1730815377528,9.14939272,163.66,163.64,11.0133821]
[1730815378139,9.40037272,163.67,163.64,11.0133821]
[1730815381152,9.40037272,163.67,163.64,0.3191821]
[1730815381352,9.27488272,163.65,163.64,0.3191821]
[1730815381555,33.30274672,163.65,163.64,0.3191821]
[1730815381740,53.30274672,163.65,163.64,0.3191821]
[1730815382827,57.58014672,163.65,163.64,0.3191821]
[1730815384962,73.61994672,163.65,163.64,0.3191821]
[1730815388434,44.153354,163.64,163.56,4.2796]
[1730815388633,0.12549,163.6,163.56,14.979]
[1730815389165,9.27488272,163.6,163.56,14.979]
[1730815393583,9.14939272,163.59,163.56,14.979]
[1730815393886,9.27488272,163.58,163.55,4.5991821]
[1730815394064,9.27488272,163.58,163.55,0.3191821]
[1730815394459,0.12549,163.58,163.55,0.3191821]
[1730815395503,0.12549,163.58,163.55,4.5991821]
[1730815396164,0.12549,163.58,163.55,15.2991821]
[1730815398786,0.12549,163.59,163.55,15.2991821]
[1730815401859,0.12549,163.59,163.56,9.14939272]
[1730815402063,0.12549,163.6,163.56,9.14939272]
[1730815402878,9.27488272,163.6,163.55,15.2991821]
[1730815403479,9.27488272,163.6,163.55,24.44857482]
[1730815409799,33.30274672,163.61,163.55,15.2991821]
[1730815410118,0.12549,163.59,163.55,24.44857482]
[1730815411715,0.12549,163.6,163.55,24.44857482]
[1730815411918,9.14939272,163.59,163.55,15.2991821]
[1730815412128,0.12549,163.58,163.55,15.2991821]
[1730815412291,9.27488272,163.58,163.55,15.2991821]
[1730815413194,0.12549,163.58,163.55,15.2991821]
[1730815417793,9.27488272,163.58,163.55,15.2991821]
[1730815418493,9.27488272,163.59,163.55,15.2991821]
[1730815418820,0.12549,163.57,163.55,15.2991821]
[1730815419028,9.14939272,163.56,163.55,0.3191821]
[1730815419518,9.27488272,163.57,163.55,0.3191821]
[1730815420235,9.27488272,163.57,163.55,4.5991821]
[1730815423736,0.12549,163.57,163.55,4.5991821]
[1730815424224,9.27488272,163.57,163.55,4.5991821]
[1730815426129,9.14939272,163.56,163.55,0.3191821]
[1730815430822,9.14939272,163.57,163.55,0.3191821]
[1730815431640,9.27488272,163.58,163.55,0.3191821]
[1730815431841,9.27488272,163.58,163.55,4.5991821]
[1730815433619,0.12549,163.58,163.55,4.5991821]
[1730815434337,4.2779,163.64,163.56,9.14939272]
[1730815434535,9.14939272,163.62,163.56,9.14939272]
[1730815435327,9.14939272,163.61,163.56,9.14939272]
[1730815435642,9.14939272,163.61,163.57,4.2795]
[1730815437457,9.14939272,163.59,163.55,11.0191821]
[1730815437746,9.14939272,163.59,163.56,14.9791]
[1730815438047,9.14939272,163.6,163.56,14.9791]
[1730815438224,9.14939272,163.58,163.56,10.6994]
[1730815439040,0.12549,163.59,163.56,10.6994]
[1730815439337,0.12549,163.59,163.56,14.9791]
[1730815441544,0.12549,163.6,163.56,24.12849272]
[1730815442243,0.12549,163.6,163.56,14.9791]
[1730815442847,0.12549,163.6,163.56,24.12849272]
[1730815443158,9.14939272,163.62,163.57,9.14939272]
[1730815443541,0.12549,163.61,163.58,4.2792]
[1730815444054,9.14939272,163.6,163.56,14.9789]
[1730815444360,0.12549,163.61,163.57,9.14939272]
[1730815444731,0.12549,163.61,163.56,24.12829272]
[1730815446028,16.0398,163.65,163.58,9.14939272]
[1730815446225,9.14939272,163.66,163.6,9.14939272]
[1730815446459,9.14939272,163.67,163.61,9.14939272]
[1730815446628,4.2766,163.68,163.56,211.5464]
[1730815446629,9.27488272,163.66,163.6,9.14939272]
[1730815447446,0.12549,163.65,163.6,9.14939272]
[1730815447642,9.14939272,163.65,163.61,14.9745]
[1730815448551,9.14939272,163.64,163.61,10.6961]
[1730815450350,9.14939272,163.63,163.59,4.2789]
[1730815450666,9.14939272,163.62,163.58,10.6979]
[1730815451433,0.12549,163.63,163.58,19.84729272]
[1730815451659,9.27488272,163.64,163.58,24.12649272]
[1730815451932,9.14939272,163.63,163.58,24.12649272]
[1730815452359,9.14939272,163.62,163.58,14.9771]
[1730815452862,9.27488272,163.61,163.58,10.6979]
[1730815453163,9.14939272,163.59,163.55,11.0191821]
[1730815454960,9.14939272,163.59,163.55,15.2991821]
[1730815457268,0.12549,163.59,163.55,24.44857482]
[1730815457784,0.12549,163.59,163.55,15.2991821]
[1730815458364,9.27488272,163.59,163.55,15.2991821]
[1730815462366,0.12549,163.59,163.55,24.44857482]
[1730815463868,9.27488272,163.59,163.55,15.2991821]
[1730815469854,9.14939272,163.61,163.56,9.14939272]
[1730815470055,0.12549,163.61,163.57,9.14939272]
[1730815470274,9.14939272,163.64,163.59,9.14939272]
[1730815470664,9.14939272,163.63,163.58,9.14939272]
[1730815471571,9.14939272,163.63,163.59,4.2789]
[1730815475789,9.14939272,163.62,163.58,10.6979]
[1730815476285,9.27488272,163.63,163.58,10.6979]
[1730815476465,9.14939272,163.62,163.58,10.6979]
[1730815477370,9.14939272,163.62,163.58,14.9771]
[1730815478892,9.27488272,163.63,163.58,19.84729272]
[1730815480303,9.27488272,163.63,163.58,24.12649272]
[1730815480693,9.14939272,163.62,163.58,14.9771]
[1730815486219,9.27488272,163.63,163.58,19.84729272]
[1730815486593,9.27488272,163.63,163.58,10.6979]
[1730815487710,9.27488272,163.63,163.58,24.12649272]
[1730815490121,9.14939272,163.63,163.58,24.12649272]
[1730815490416,23.902374,163.65,163.6,9.14939272]
[1730815490625,33.05176672,163.65,163.6,9.14939272]
[1730815490919,20.12549,163.66,163.61,9.14939272]
[1730815491129,29.27488272,163.66,163.61,9.14939272]
[1730815491297,20.0,163.66,163.61,9.14939272]
[1730815491502,29.14939272,163.66,163.61,9.14939272]
[1730815492020,9.14939272,163.67,163.62,24.12309272]
[1730815492325,9.14939272,163.68,163.63,9.14939272]
[1730815492528,9.14939272,163.68,163.62,24.12309272]
[1730815492830,20.0,163.67,163.62,24.12309272]
[1730815494602,29.14939272,163.67,163.62,24.12309272]
[1730815496115,29.14939272,163.67,163.62,14.9737]
[1730815496321,9.14939272,163.66,163.62,14.9737]
[1730815496832,9.14939272,163.65,163.62,10.6955]
[1730815498809,24.027864,163.62,163.55,21.7192821]
[1730815499009,9.14939272,163.61,163.56,24.12839272]
[1730815499221,9.14939272,163.6,163.56,14.979]
[1730815503436,9.27488272,163.63,163.57,9.14939272]
[1730815503816,9.14939272,163.62,163.57,9.14939272]
[1730815504133,9.14939272,163.61,163.56,24.12839272]
[1730815505314,9.14939272,163.62,163.57,9.14939272]
[1730815505547,9.14939272,163.62,163.58,14.9773]
[1730815511944,9.14939272,163.62,163.58,10.6981]
[1730815513743,9.14939272,163.59,163.56,4.2797]
[1730815514350,0.12549,163.59,163.56,4.2797]
[1730815514847,0.12549,163.59,163.56,14.9791]
[1730815515045,0.12549,163.61,163.56,24.12849272]
[1730815515229,9.14939272,163.63,163.57,9.14939272]
[1730815515424,0.12549,163.62,163.57,9.14939272]
[1730815516438,0.12549,163.62,163.58,14.9773]
[1730815517725,4.2753,163.73,163.61,9.24939272]
[1730815517928,4.2753,163.73,163.66,9.14939272]
[1730815517929,9.14939272,163.72,163.66,9.14939272]
[1730815518129,18.29878572,163.71,163.65,9.14939272]
[1730815518347,19.29,163.76,163.68,9.14939272]
[1730815518547,9.14939272,163.71,163.63,158.9]
[1730815518855,9.14939272,163.72,163.66,9.14939272]
[1730815519046,9.14939272,163.72,163.64,20.0]
[1730815519047,9.14939272,163.73,163.67,9.14939272]
[1730815519249,9.14939272,163.73,163.69,14.9672]
[1730815519250,0.12549,163.73,163.69,14.9672]
[1730815519448,9.14939272,163.75,163.69,24.11659272]
[1730815519645,0.12549,163.75,163.7,9.14939272]
[1730815519840,16.1832,163.8,163.71,9.14939272]
[1730815520041,9.14939272,163.77,163.71,9.14939272]
[1730815520236,22.60684398,163.8,163.71,9.14939272]
[1730815520434,9.14939272,163.77,163.71,9.14939272]
[1730815521435,0.12549,163.77,163.72,24.11379272]
[1730815522449,9.14939272,163.79,163.73,9.14939272]
[1730815522961,0.12549,163.78,163.73,9.14939272]
[1730815523634,0.12549,163.78,163.74,14.9626]
[1730815524263,9.14939272,163.78,163.74,14.9626]
[1730815524440,9.14939272,163.77,163.74,14.9626]
[1730815524841,9.14939272,163.76,163.74,10.6876]
[1730815525044,9.14939272,163.75,163.74,10.6876]
[1730815525256,9.14939272,163.76,163.74,10.6876]
[1730815525459,9.14939272,163.76,163.74,14.9626]
[1730815525652,9.14939272,163.76,163.71,14.9654]
[1730815526175,9.27488272,163.75,163.71,14.9654]
[1730815526357,9.14939272,163.74,163.71,14.9654]
[1730815526553,0.12549,163.75,163.71,10.6896]
[1730815526554,9.14939272,163.73,163.71,10.6896]
[1730815526763,9.14939272,163.73,163.7,163.076]
[1730815526967,9.14939272,163.73,163.7,4.276]
[1730815527675,9.14939272,163.73,163.68,19.84089272]
[1730815528768,9.14939272,163.74,163.68,19.84089272]
[1730815528955,0.12549,163.73,163.69,9.14939272]
[1730815529575,0.12549,163.71,163.68,14.9681]
[1730815530785,0.12549,163.71,163.68,10.6915]
[1730815531973,9.40037272,163.7,163.65,30.53589272]
[1730815532177,9.40037272,163.7,163.66,4.277]
[1730815532178,9.27488272,163.7,163.66,4.277]
[1730815532359,0.12549,163.69,163.64,19.84309272]
[1730815532559,9.40037272,163.69,163.65,4.2771]
[1730815533285,9.40037272,163.69,163.6,14.9749]
[1730815533286,24.153354,163.65,163.6,14.9749]
[1730815533455,0.12549,163.62,163.6,10.6962]
[1730815534387,0.12549,163.62,163.59,4.2789]
[1730815535974,0.12549,163.62,163.58,9.14939272]
[1730815536387,0.12549,163.64,163.59,9.14939272]
[1730815536589,9.40037272,163.64,163.58,9.14939272]
[1730815537975,0.25098,163.64,163.61,4.2784]
[1730815538573,0.12549,163.65,163.61,4.2784]
[1730815538775,9.27488272,163.65,163.61,14.9745]
[1730815538979,9.14939272,163.64,163.61,14.9745]
[1730815540693,9.14939272,163.64,163.61,10.6961]
[1730815543378,33.30274672,163.66,163.61,9.14939272]
[1730815544177,33.30274672,163.66,163.6,9.14939272]
[1730815544680,33.30274672,163.66,163.61,4.2784]
[1730815545193,9.14939272,163.65,163.61,4.2784]
[1730815545378,0.12549,163.64,163.61,4.2784]
[1730815546004,0.12549,163.64,163.61,14.9745]
[1730815546379,0.12549,163.65,163.61,14.9745]
[1730815549404,120.08769975,163.72,163.63,9.14939272]
[1730815549696,0.12549,163.67,163.62,9.14939272]
[1730815549890,9.14939272,163.66,163.61,24.12389272]
[1730815551097,9.40037272,163.67,163.61,24.12389272]
[1730815551300,0.12549,163.67,163.62,9.14939272]
[1730815553399,9.27488272,163.67,163.63,14.9727]
[1730815553604,0.12549,163.67,163.63,14.9727]
[1730815554808,0.12549,163.65,163.63,14.9727]
[1730815555006,9.27488272,163.65,163.59,9.14939272]
[1730815555311,9.27488272,163.65,163.6,14.9753]
[1730815556999,0.12549,163.65,163.6,19.84599272]
[1730815557197,0.12549,163.65,163.61,9.14939272]
[1730815557515,24.027864,163.66,163.61,9.14939272]
[1730815558725,24.027864,163.66,163.62,14.9737]
[1730815559315,24.027864,163.66,163.62,24.12309272]
[1730815559316,0.12549,163.66,163.62,24.12309272]
[1730815559516,0.12549,163.67,163.62,24.12309272]
[1730815559708,0.25098,163.67,163.63,9.14939272]
[1730815560226,9.14939272,163.7,163.64,9.14939272]
[1730815560404,9.14939272,163.7,163.65,9.14939272]
[1730815560605,0.12549,163.69,163.66,14.9699]
[1730815561625,0.25098,163.69,163.66,14.9699]
[1730815562311,0.25098,163.69,163.66,10.6928]
[1730815566545,0.25098,163.69,163.65,9.14939272]
[1730815566707,0.12549,163.7,163.66,9.14939272]
[1730815567319,0.25098,163.71,163.67,9.14939272]
[1730815567632,0.12549,163.72,163.68,9.14939272]
[1730815567805,15.1698,163.76,163.7,9.14939272]
[1730815568127,9.14939272,163.76,163.7,9.14939272]
[1730815568698,0.12549,163.75,163.71,14.9654]
[1730815569223,9.27488272,163.75,163.71,14.9654]
[1730815569425,0.12549,163.74,163.71,14.9654]
[1730815570020,0.25098,163.75,163.71,14.9654]